bitfinex/quotes_BTCUSD_20240905
["timestamp","ask_amount","ask_price","bid_price","bid_amount"]
[1725558362154,1.13911126,56544.0,56543.0,2.76454645]
[1725558362820,1.13911126,56544.0,56543.0,2.71197415]
[1725558363916,1.13992726,56544.0,56543.0,2.71197415]
[1725558364135,1.13992726,56544.0,56543.0,2.35163075]
[1725558364340,1.13992726,56544.0,56543.0,2.22696115]
[1725558365178,1.13992726,56544.0,56543.0,2.22033075]
[1725558365610,1.13992726,56544.0,56543.0,2.22696115]
[1725558365828,1.13992726,56544.0,56543.0,2.22896115]
[1725558366688,1.13992726,56544.0,56543.0,2.47036115]
[1725558367297,1.13992726,56544.0,56543.0,1.89521896]
[1725558367519,1.13992726,56544.0,56543.0,1.91521896]
[1725558367975,1.13992726,56544.0,56543.0,1.54150596]
[1725558368441,1.13992726,56544.0,56543.0,1.18779296]
[1725558368670,1.13992726,56544.0,56543.0,0.204856]
[1725558368887,1.37642726,56544.0,56543.0,0.028]
[1725558369320,1.37979686,56544.0,56543.0,0.028]
[1725558370464,1.37979686,56544.0,56543.0,0.014]
[1725558370707,1.37979686,56544.0,56543.0,0.190856]
[1725558370966,1.37979686,56544.0,56543.0,0.204856]
[1725558371184,1.37979686,56544.0,56543.0,0.190856]
[1725558371407,1.37979686,56544.0,56543.0,0.176856]
[1725558371616,1.37979686,56544.0,56543.0,1.08179296]
[1725558371617,1.37642726,56544.0,56543.0,1.08179296]
[1725558371829,1.37642726,56544.0,56543.0,1.07079296]
[1725558372267,1.37642726,56544.0,56543.0,1.07379296]
[1725558372500,1.13992726,56544.0,56543.0,1.44150596]
[1725558372725,1.13992726,56544.0,56543.0,1.68568656]
[1725558373163,1.13992726,56544.0,56543.0,1.44150596]
[1725558373598,1.13992726,56544.0,56543.0,1.42750596]
[1725558373805,1.13992726,56544.0,56543.0,1.43850596]
[1725558374244,1.13992726,56544.0,56543.0,1.42750596]
[1725558374485,1.13992726,56544.0,56543.0,1.44150596]
[1725558376118,1.28359686,56544.0,56543.0,0.028]
[1725558376323,1.28359686,56544.0,56543.0,0.204856]
[1725558376745,1.28359686,56544.0,56543.0,0.558569]
[1725558376951,1.28022726,56544.0,56543.0,0.558569]
[1725558377157,1.28022726,56544.0,56543.0,0.912282]
[1725558378035,1.13992726,56544.0,56543.0,1.08942496]
[1725558378253,1.13992726,56544.0,56543.0,1.44313796]
[1725558379615,1.13992726,56544.0,56543.0,1.79685096]
[1725558380690,1.13992726,56544.0,56543.0,1.8496192]
[1725558381139,1.13992726,56544.0,56543.0,1.79685096]
[1725558382507,1.13992726,56544.0,56543.0,2.24971664]
[1725558382747,0.92770126,56544.0,56543.0,2.90170736]
[1725558382953,0.00082,56546.0,56545.0,1.9253804]
[1725558383176,0.00021348,56549.0,56548.0,1.406513]
[1725558383398,0.00021348,56549.0,56548.0,2.38938596]
[1725558383646,0.00021348,56549.0,56548.0,2.52188636]
[1725558383886,0.00021348,56549.0,56548.0,3.11974796]
[1725558384101,4.8e-07,56549.0,56548.0,3.18059198]
[1725558384315,4.8e-07,56549.0,56548.0,3.31239666]
[1725558387518,4.8e-07,56549.0,56548.0,3.18559198]
[1725558387735,4.8e-07,56549.0,56548.0,3.15759198]
[1725558388156,4.8e-07,56549.0,56548.0,3.18559198]
[1725558388344,4.8e-07,56549.0,56548.0,3.29103503]
[1725558388617,4.8e-07,56549.0,56548.0,3.17159198]
[1725558388867,4.8e-07,56549.0,56548.0,2.14320536]
[1725558389087,4.8e-07,56549.0,56548.0,2.15920536]
[1725558389311,4.8e-07,56549.0,56548.0,1.90307496]
[1725558389528,4.8e-07,56549.0,56548.0,1.88107496]
[1725558389743,0.00111262,56561.0,56560.0,0.530409]
[1725558390200,0.0033696,56560.0,56559.0,0.176805]
[1725558390418,0.0033696,56557.0,56555.0,0.353634]
[1725558390640,0.0033696,56552.0,56551.0,0.17683]
[1725558390873,0.0041856,56549.0,56548.0,0.014]
[1725558391073,0.000816,56549.0,56548.0,1.396083]
[1725558391261,0.000816,56549.0,56548.0,1.749764]
[1725558391722,0.000816,56549.0,56548.0,1.92727496]
[1725558391926,0.000816,56549.0,56548.0,1.91327496]
[1725558392145,0.000816,56549.0,56548.0,2.03917496]
[1725558392550,0.000816,56549.0,56548.0,2.13917496]
[1725558393197,0.000816,56549.0,56548.0,2.15117496]
[1725558393427,0.000816,56549.0,56548.0,2.12317496]
[1725558393657,0.000816,56549.0,56548.0,1.86707496]
[1725558393906,0.000816,56549.0,56548.0,1.89507496]
[1725558394354,0.000816,56549.0,56548.0,1.88107496]
[1725558394565,0.000816,56549.0,56548.0,1.90370536]
[1725558394773,0.000816,56549.0,56548.0,1.88970536]
[1725558395231,0.000816,56549.0,56548.0,1.87570536]
[1725558395449,0.000816,56549.0,56548.0,1.88970536]
[1725558395865,0.000816,56549.0,56548.0,1.88107496]
[1725558396348,0.000816,56549.0,56548.0,1.89707496]
[1725558396586,0.1784,56567.0,56548.0,1.89707496]
[1725558396587,0.1784,56567.0,56566.0,1.237491]
[1725558397501,0.0441,56567.0,56566.0,1.237491]
[1725558398024,0.0002134,56571.0,56569.0,0.35355]
[1725558398262,0.0002134,56571.0,56570.0,0.530316]
[1725558398461,0.0002134,56571.0,56570.0,1.237404]
[1725558398890,0.0002134,56571.0,56570.0,1.41291496]
[1725558399573,0.0002134,56571.0,56570.0,2.12365896]
[1725558399787,0.0002134,56571.0,56570.0,1.86645896]
[1725558399997,0.0002134,56571.0,56570.0,1.86945896]
[1725558400248,0.0002134,56571.0,56570.0,1.86645896]
[1725558400672,0.0002134,56571.0,56570.0,1.87345896]
[1725558400880,0.0002134,56571.0,56570.0,1.86645896]
[1725558401113,0.0002134,56571.0,56570.0,1.88045896]
[1725558401664,0.0002134,56571.0,56570.0,1.89445896]
[1725558403387,0.0002134,56571.0,56570.0,1.54091496]
[1725558405011,0.0002134,56571.0,56570.0,0.91186]
[1725558405238,0.0002134,56571.0,56570.0,0.558316]
[1725558405239,0.003583,56571.0,56570.0,0.558316]
[1725558405534,0.0002134,56571.0,56570.0,1.44091496]
[1725558406244,0.0002134,56571.0,56570.0,1.42691496]
[1725558406467,0.0002134,56571.0,56570.0,1.41291496]
[1725558406700,0.0002134,56571.0,56570.0,1.42691496]
[1725558406932,0.0002134,56571.0,56570.0,1.44091496]
[1725558411597,0.0002134,56571.0,56570.0,1.08737096]
[1725558415922,0.0010294,56571.0,56570.0,1.44091496]
[1725558416644,0.0010294,56571.0,56570.0,1.59051496]
[1725558416896,0.0010294,56571.0,56570.0,1.71431496]
[1725558417410,0.0010294,56571.0,56570.0,1.44091496]
[1725558418584,0.0010294,56571.0,56570.0,1.08737096]
[1725558418825,0.42070175,56579.0,56575.0,0.176754]
[1725558419302,0.24395575,56579.0,56573.0,0.353522]
[1725558419554,0.176748,56578.0,56575.0,0.176756]
[1725558419799,0.42069975,56579.0,56574.0,0.353514]
[1725558420028,0.42070075,56579.0,56576.0,0.176752]
[1725558420275,0.42070075,56579.0,56574.0,0.353517]
[1725558420276,0.00307728,56578.0,56577.0,0.17675]
[1725558420509,0.00307728,56578.0,56577.0,0.88375]
[1725558421416,0.00307728,56578.0,56577.0,1.41276096]
[1725558421658,0.00307728,56578.0,56577.0,1.53076096]
[1725558421894,0.00307728,56578.0,56577.0,1.54476096]
[1725558422849,0.00307728,56578.0,56577.0,1.55776096]
[1725558424060,0.00021333,56589.0,56586.0,0.17672]
[1725558424296,0.17692633,56589.0,56586.0,0.17672]
[1725558424533,0.00307675,56588.0,56587.0,0.176719]
[1725558424791,0.00307675,56588.0,56587.0,0.883595]
[1725558425023,0.00307675,56588.0,56587.0,2.51945381]
[1725558425286,0.00021333,56589.0,56588.0,1.269008]
[1725558425522,0.00021333,56589.0,56588.0,2.48741565]
[1725558425765,0.00021333,56589.0,56588.0,2.76183671]
[1725558426461,0.00081,56590.0,56588.0,2.76183671]
[1725558426462,3.3e-07,56590.0,56589.0,1.884912]
[1725558426675,0.00013,56598.0,56589.0,1.884912]
[1725558426676,1e-06,56594.0,56593.0,2.2382]
[1725558426907,1e-06,56594.0,56593.0,2.86274442]
[1725558427431,0.0130748,56617.0,56604.0,1.73581375]
[1725558427432,0.00216795,56605.0,56604.0,1.73581375]
[1725558427637,0.00216795,56605.0,56604.0,2.39665571]
[1725558427854,0.00216795,56605.0,56604.0,2.74998671]
[1725558428816,0.00216795,56605.0,56604.0,2.15269996]
[1725558429036,0.00216795,56605.0,56604.0,2.39665571]
[1725558429691,0.00216795,56605.0,56604.0,2.41065571]
[1725558429919,0.00216795,56605.0,56604.0,2.42465571]
[1725558430138,0.00298295,56605.0,56604.0,2.40729334]
[1725558430549,0.00298295,56605.0,56604.0,2.43529334]
[1725558431045,0.00298295,56605.0,56604.0,1.80536896]
[1725558431281,0.00298295,56605.0,56604.0,1.79536896]
[1725558431486,0.00283315,56605.0,56604.0,1.79136896]
[1725558431689,0.00283315,56605.0,56604.0,1.54016896]
[1725558431919,0.00283315,56605.0,56604.0,1.52616896]
[1725558432132,0.00283315,56605.0,56604.0,1.18683796]
[1725558432364,0.00283315,56605.0,56604.0,1.54016896]
[1725558432627,0.00283315,56605.0,56604.0,1.18683796]
[1725558432836,0.00283315,56605.0,56604.0,1.17283796]
[1725558433062,0.00283315,56605.0,56604.0,1.18683796]
[1725558433302,0.00283315,56605.0,56604.0,0.304665]
[1725558433520,0.00283315,56605.0,56604.0,0.997327]
[1725558433731,0.00283315,56605.0,56604.0,0.014]
[1725558434000,0.81219207,56605.0,56604.0,0.014]
[1725558434234,0.81219207,56605.0,56588.0,0.52650515]
[1725558434235,0.35335,56601.0,56588.0,0.52650515]
[1725558434455,0.24395575,56601.0,56589.0,0.17551096]
[1725558434711,0.4726,56615.0,56589.0,0.17551096]
[1725558434712,0.0603,56612.0,56605.0,0.529987]
[1725558434926,0.0603,56612.0,56595.0,0.01]
[1725558435147,0.236941,56612.0,56605.0,0.176662]
[1725558435355,0.0603,56612.0,56605.0,0.883312]
[1725558435564,0.0603,56612.0,56604.0,0.014]
[1725558435785,0.24395575,56605.0,56597.0,0.1]
[1725558436019,0.24395575,56605.0,56595.0,0.1]
[1725558436020,0.30472538,56608.0,56598.0,0.17551096]
[1725558436232,0.177481,56606.0,56601.0,0.176675]
[1725558436508,0.00082,56606.0,56601.0,0.176675]
[1725558436713,0.00082,56606.0,56599.0,0.353362]
[1725558436714,0.00082,56606.0,56602.0,0.176671]
[1725558436920,0.00082,56606.0,56604.0,0.002]
[1725558437131,0.00082,56606.0,56605.0,0.176662]
[1725558437346,0.00082,56606.0,56605.0,0.529987]
[1725558437567,0.00082,56606.0,56605.0,0.883312]
[1725558437802,0.00082,56606.0,56605.0,1.20162296]
[1725558438488,0.00082,56606.0,56605.0,0.70549796]
[1725558438703,0.00082,56606.0,56605.0,0.71349796]
[1725558438907,0.00082,56606.0,56605.0,1.06682296]
[1725558439558,0.00082,56606.0,56605.0,1.42014796]
[1725558439774,0.00082,56606.0,56605.0,1.68714796]
[1725558439982,0.00082,56606.0,56605.0,1.69414796]
[1725558441173,0.00082,56606.0,56605.0,2.04747296]
[1725558441408,0.00082,56606.0,56605.0,1.69414796]
[1725558441647,0.00082,56606.0,56605.0,2.04747296]
[1725558441880,0.00082,56606.0,56605.0,2.14747296]
[1725558443328,0.00082,56606.0,56605.0,2.53279796]
[1725558443542,0.00082,56606.0,56605.0,2.17747296]
[1725558443775,0.00082,56606.0,56605.0,2.16747296]
[1725558444467,0.00082,56606.0,56605.0,2.16047296]
[1725558444690,0.00082,56606.0,56605.0,2.16147296]
[1725558444901,0.00082,56606.0,56605.0,2.17147296]
[1725558445102,0.00082,56606.0,56605.0,2.16247296]
[1725558445372,0.00082,56606.0,56605.0,2.15247296]
[1725558445593,0.00082,56606.0,56605.0,2.16647296]
[1725558446469,0.00082,56606.0,56605.0,2.15647296]
[1725558446703,0.00082,56606.0,56605.0,2.17047296]
[1725558448951,0.00082,56606.0,56605.0,2.16047296]
[1725558449633,0.00082,56606.0,56605.0,2.17047296]
[1725558450060,0.00082,56606.0,56605.0,2.17247296]
[1725558450514,0.00082,56606.0,56605.0,2.62123324]
[1725558451009,0.00021322,56620.0,56616.0,1.731456]
[1725558451233,0.00021322,56620.0,56616.0,1.90696696]
[1725558452357,0.00021322,56620.0,56616.0,1.92096696]
[1725558452795,0.00021322,56620.0,56616.0,2.04256696]
[1725558453218,0.00021322,56620.0,56616.0,2.05656696]
[1725558453430,0.00021322,56620.0,56616.0,1.93496696]
[1725558453648,0.010815,56617.0,56616.0,1.93496696]
[1725558454310,0.010815,56617.0,56616.0,1.58170996]
[1725558454770,0.01064688,56617.0,56616.0,1.58170996]
[1725558456605,0.01064688,56617.0,56616.0,1.93496696]
[1725558456819,0.01064688,56617.0,56616.0,2.17853242]
[1725558457037,0.01064688,56617.0,56616.0,1.93496696]
[1725558458131,0.00021322,56620.0,56616.0,1.93496696]
[1725558458132,0.00021322,56620.0,56619.0,1.954809]
[1725558458355,0.00021322,56620.0,56619.0,2.03508196]
[1725558459055,0.00021322,56620.0,56619.0,2.02508196]
[1725558459490,0.00021322,56620.0,56619.0,2.03908196]
[1725558460672,0.00021322,56620.0,56619.0,2.05508196]
[1725558461128,0.00021322,56620.0,56619.0,1.52584396]
[1725558461590,0.00021322,56620.0,56619.0,1.89308196]
[1725558461818,0.00021322,56620.0,56619.0,2.13664742]
[1725558462060,0.00021322,56620.0,56619.0,2.26224742]
[1725558462297,0.00021322,56620.0,56619.0,2.27624742]
[1725558462524,0.00021322,56620.0,56619.0,2.41364742]
[1725558463008,0.59666146,56642.0,56621.0,0.353225]
[1725558463233,0.176559,56639.0,56622.0,0.27551096]
[1725558463470,0.353105,56641.0,56622.0,0.27551096]
[1725558463471,0.353127,56637.0,56622.0,0.27551096]
[1725558463712,0.24356546,56634.0,56630.0,0.176584]
[1725558464396,0.353127,56637.0,56628.0,0.353179]
[1725558464397,0.176566,56636.0,56631.0,0.176581]
[1725558464628,0.353127,56637.0,56622.0,0.27551096]
[1725558464876,0.353127,56637.0,56630.0,0.176583]
[1725558464877,0.17657,56635.0,56630.0,0.176583]
[1725558465338,0.176565,56637.0,56632.0,0.176577]
[1725558465567,0.17656,56638.0,56634.0,0.176571]
[1725558466066,1.30819419,56644.0,56631.0,0.1456]
[1725558466323,1.30819419,56644.0,56643.0,0.89472]
[1725558466591,1.03009419,56644.0,56643.0,2.08428442]
[1725558466810,1.03009419,56644.0,56643.0,2.48976208]
[1725558467030,1.03009419,56644.0,56643.0,2.43737242]
[1725558467386,0.79959356,56644.0,56643.0,2.37937242]
[1725558467595,0.65836156,56644.0,56643.0,2.20380696]
[1725558467826,0.65836156,56644.0,56643.0,2.50409868]
[1725558468070,0.42721608,56644.0,56643.0,2.1685483]
[1725558468305,0.27976111,56644.0,56643.0,2.2463603]
[1725558468524,0.27976111,56644.0,56643.0,2.24633931]
[1725558468746,0.27976111,56644.0,56643.0,2.53839281]
[1725558468980,0.27976111,56644.0,56643.0,2.55239885]
[1725558469199,0.27976111,56644.0,56643.0,2.55039885]
[1725558469445,0.27976111,56644.0,56643.0,2.45786046]
[1725558469687,0.27976111,56644.0,56643.0,2.44786046]
[1725558469929,0.27976111,56644.0,56643.0,2.43786046]
[1725558470157,0.27976111,56644.0,56643.0,2.14780696]
[1725558470649,0.27976111,56644.0,56643.0,1.74397866]
[1725558471091,0.27976111,56644.0,56643.0,1.67761896]
[1725558471548,0.27976111,56644.0,56643.0,1.69161896]
[1725558472496,0.27976111,56644.0,56643.0,1.68161896]
[1725558472718,0.27976111,56644.0,56643.0,1.53931896]
[1725558473614,0.27976111,56644.0,56643.0,1.51131896]
[1725558474068,0.27976111,56644.0,56643.0,1.52531896]
[1725558474528,0.27976111,56644.0,56643.0,1.51131896]
[1725558475031,0.27976111,56644.0,56643.0,1.53931896]
[1725558475256,0.27976111,56644.0,56643.0,1.52531896]
[1725558475709,0.27976111,56644.0,56643.0,1.53931896]
[1725558477085,0.27976111,56644.0,56643.0,0.028]
[1725558477311,0.39846111,56644.0,56643.0,0.204544]
[1725558477546,0.39846111,56644.0,56643.0,0.028]
[1725558477779,0.39846111,56644.0,56643.0,0.204544]
[1725558478244,0.39846111,56644.0,56643.0,0.543632]
[1725558478459,0.39846111,56644.0,56643.0,0.559262]
[1725558478674,0.39927611,56644.0,56643.0,0.559262]
[1725558478974,0.39927611,56644.0,56643.0,0.192174]
[1725558479686,0.39927611,56644.0,56643.0,0.206174]
[1725558479926,0.28057611,56644.0,56643.0,0.559262]
[1725558480142,0.28057611,56644.0,56643.0,0.206174]
[1725558480374,0.28057611,56644.0,56643.0,0.02963]
[1725558480375,0.63365811,56644.0,56643.0,0.02963]
[1725558480630,0.81019911,56644.0,56643.0,0.02963]
[1725558481094,1.16328111,56644.0,56643.0,0.02963]
[1725558481619,1.45618111,56644.0,56643.0,0.02963]
[1725558481861,1.10309911,56644.0,56643.0,0.01563]
[1725558482095,0.72701711,56644.0,56643.0,0.00163]
[1725558482338,1.08009911,56644.0,56643.0,0.00563]
[1725558482577,1.45618111,56644.0,56643.0,0.00563]
[1725558482850,1.80926311,56644.0,56643.0,0.00163]
[1725558483066,1.80926311,56644.0,56615.0,0.52650515]
[1725558483067,0.144,56631.0,56615.0,0.52650515]
[1725558483290,0.002,56635.0,56616.0,0.176626]
[1725558483291,0.6246705,56620.0,56616.0,0.176626]
[1725558483539,0.6246705,56620.0,56608.0,0.1535]
[1725558483540,0.353238,56619.0,56608.0,0.1535]
[1725558483788,0.3040535,56614.0,56610.0,0.35329]
[1725558484028,0.3040535,56614.0,56606.0,0.354943]
[1725558484029,0.1217,56613.0,56606.0,0.354943]
[1725558484255,0.1217,56613.0,56609.0,0.176649]
[1725558484503,0.1217,56613.0,56610.0,0.176646]
[1725558484723,0.1217,56613.0,56608.0,0.353306]
[1725558484959,0.1217,56613.0,56610.0,0.176645]
[1725558485192,0.1217,56613.0,56611.0,0.176644]
[1725558485391,0.1217,56613.0,56611.0,0.176641]
[1725558485865,0.1217,56613.0,56610.0,0.182645]
[1725558486302,0.1217,56613.0,56610.0,0.019]
[1725558486303,0.176641,56612.0,56610.0,0.019]
[1725558486552,0.1217,56613.0,56612.0,0.529921]
[1725558486771,0.1217,56626.0,56612.0,0.17551096]
[1725558487027,0.02767876,56636.0,56612.0,0.17551096]
[1725558487028,0.1217,56633.0,56632.0,0.529735]
[1725558487242,0.1217,56633.0,56632.0,0.882892]
[1725558487458,0.1217,56640.0,56624.0,0.497205]
[1725558487690,0.1217,56640.0,56639.0,0.353113]
[1725558487944,0.1217,56640.0,56639.0,0.529669]
[1725558488169,0.1217,56640.0,56639.0,0.882782]
[1725558488170,0.12477375,56640.0,56639.0,0.882782]
[1725558488398,0.00307375,56640.0,56639.0,0.529669]
[1725558488637,0.00307375,56640.0,56638.0,0.176559]
[1725558488882,0.00307375,56640.0,56639.0,0.176556]
[1725558489353,0.00307375,56640.0,56639.0,1.235895]
[1725558489568,0.00307375,56640.0,56639.0,0.882782]
[1725558489795,0.00307375,56640.0,56639.0,0.886782]
[1725558490250,0.03191267,56644.0,56639.0,0.004]
[1725558490522,0.03191267,56644.0,56641.0,0.353101]
[1725558490752,0.00307392,56643.0,56642.0,0.176546]
[1725558491401,0.00307392,56643.0,56642.0,0.882734]
[1725558492088,0.00307392,56643.0,56642.0,0.52964]
[1725558492340,0.00307392,56643.0,56642.0,0.53127]
[1725558492555,0.68380592,56643.0,56642.0,0.00163]
[1725558492802,0.70680592,56643.0,56642.0,0.00163]
[1725558493029,0.70680592,56643.0,56642.0,0.00263]
[1725558493475,1.05989392,56643.0,56642.0,0.00263]
[1725558493912,1.05989392,56643.0,56642.0,0.00363]
[1725558494815,1.41298192,56643.0,56642.0,0.00363]
[1725558495044,1.05989392,56643.0,56642.0,0.00363]
[1725558495254,1.41298192,56643.0,56642.0,0.00363]
[1725558495722,1.53698192,56643.0,56642.0,0.00363]
[1725558495965,1.99006992,56643.0,56642.0,0.00363]
[1725558496204,1.99006992,56643.0,56642.0,0.00263]
[1725558496644,1.99206992,56643.0,56642.0,0.00163]
[1725558496915,1.99006992,56643.0,56642.0,0.00163]
[1725558497133,0.176616,56620.0,56619.0,0.52650515]
[1725558497348,0.88308,56620.0,56619.0,0.52650515]
[1725558497570,0.88308,56620.0,56606.0,0.354945]
[1725558497571,0.353275,56614.0,56606.0,0.354945]
[1725558497787,0.176643,56612.0,56606.0,0.354945]
[1725558498023,0.353275,56614.0,56606.0,0.354945]
[1725558498024,0.123,56614.0,56606.0,0.354943]
[1725558498287,0.3040535,56617.0,56611.0,0.176643]
[1725558498288,0.176633,56615.0,56611.0,0.176643]
[1725558498521,0.3040535,56617.0,56608.0,0.353305]
[1725558498522,0.353257,56616.0,56608.0,0.353305]
[1725558498742,0.176638,56613.0,56609.0,0.176648]
[1725558498976,0.353266,56615.0,56607.0,0.176654]
[1725558498977,0.176642,56612.0,56607.0,0.176654]
[1725558499192,0.353275,56614.0,56606.0,0.00163]
[1725558499431,0.353284,56612.0,56606.0,0.10163]
[1725558499673,0.353275,56614.0,56606.0,0.10163]
[1725558499674,0.176646,56611.0,56607.0,0.176655]
[1725558499890,0.353285,56612.0,56606.0,0.10163]
[1725558500138,0.4807015,56610.0,56607.0,0.014]
[1725558500357,0.3040535,56610.0,56607.0,0.176655]
[1725558500584,0.176648,56610.0,56606.0,0.190287]
[1725558500809,0.176648,56610.0,56606.0,0.01563]
[1725558501054,0.3040535,56615.0,56609.0,0.3533]
[1725558501271,0.3040535,56615.0,56606.0,0.02963]
[1725558501272,0.1171,56624.0,56610.0,0.3272437]
[1725558501496,0.1171,56624.0,56610.0,0.32371096]
[1725558501978,0.353235,56620.0,56611.0,0.353285]
[1725558502203,0.3040535,56621.0,56612.0,0.52878696]
[1725558502428,0.3040535,56621.0,56617.0,0.176623]
[1725558502657,0.4806655,56621.0,56617.0,0.176623]
[1725558502918,0.176607,56623.0,56619.0,0.176617]
[1725558503146,0.353232,56620.0,56614.0,0.353269]
[1725558503376,0.17662,56619.0,56616.0,0.176628]
[1725558503597,0.176616,56620.0,56616.0,0.176628]
[1725558503816,0.353236,56620.0,56617.0,0.004]
[1725558504033,0.3040535,56621.0,56618.0,0.176621]
[1725558504249,0.1171,56624.0,56618.0,0.353241]
[1725558504694,0.176606,56623.0,56619.0,0.176618]
[1725558504695,0.17661,56622.0,56619.0,0.176618]
[1725558504953,0.1123,56629.0,56620.0,0.1563]
[1725558505196,0.1123,56629.0,56617.0,0.17951096]
[1725558505197,0.353234,56620.0,56617.0,0.005]
[1725558505435,0.353238,56619.0,56617.0,0.005]
[1725558505672,0.353244,56618.0,56617.0,0.005]
[1725558505894,0.176622,56618.0,56617.0,0.005]
[1725558506116,0.3040535,56621.0,56617.0,0.005]
[1725558506117,0.6572835,56621.0,56617.0,0.005]
[1725558506331,0.6572835,56621.0,56611.0,0.354919]
[1725558506332,0.353244,56618.0,56611.0,0.354919]
[1725558506560,0.176629,56616.0,56611.0,0.354919]
[1725558506778,0.6572825,56621.0,56611.0,0.001632]
[1725558507016,0.1557,56624.0,56611.0,0.001632]
[1725558507017,0.17664,56612.0,56611.0,0.001632]
[1725558507922,0.17664,56612.0,56611.0,0.011632]
[1725558508143,0.3040535,56616.0,56611.0,0.011632]
[1725558508375,0.3040535,56616.0,56612.0,0.17664]
[1725558508376,0.176634,56615.0,56612.0,0.17664]
[1725558508601,0.353255,56617.0,56613.0,0.176636]
[1725558508820,0.353259,56616.0,56611.0,0.011632]
[1725558509056,0.176635,56614.0,56611.0,0.191273]
[1725558509276,0.176631,56615.0,56611.0,0.188273]
[1725558509495,0.353259,56616.0,56611.0,0.001632]
[1725558509726,0.353251,56617.0,56612.0,0.008]
[1725558509946,0.176632,56615.0,56611.0,0.189274]
[1725558510176,0.35324,56619.0,56611.0,0.371917]
[1725558510405,0.17663,56616.0,56612.0,0.176639]
[1725558510628,0.176631,56616.0,56612.0,0.176639]
[1725558511172,0.176635,56614.0,56611.0,0.184274]
[1725558511379,0.00307549,56615.0,56611.0,0.360916]
[1725558511595,0.17970849,56615.0,56612.0,0.176639]
[1725558512053,0.00307549,56615.0,56614.0,0.176634]
[1725558512534,0.00307549,56615.0,56614.0,1.41195196]
[1725558513190,0.00307549,56615.0,56614.0,1.55515196]
[1725558513560,0.00307549,56615.0,56614.0,2.02652096]
[1725558513761,0.42022549,56638.0,56634.0,0.176571]
[1725558513957,0.42022549,56638.0,56631.0,0.1432]
[1725558513958,0.58660642,56637.0,56631.0,0.31978]
[1725558514143,0.24366449,56634.0,56631.0,0.1432]
[1725558514341,0.24366449,56634.0,56632.0,0.176576]
[1725558514547,0.24366449,56634.0,56633.0,0.176575]
[1725558514769,0.24366449,56634.0,56631.0,0.176579]
[1725558515195,0.42023949,56634.0,56630.0,0.176584]
[1725558515409,0.42023949,56634.0,56627.0,0.1432]
[1725558515410,0.176576,56633.0,56627.0,0.1432]
[1725558515638,0.24366449,56634.0,56627.0,0.1432]
[1725558515864,0.42023649,56634.0,56629.0,0.353173]
[1725558516068,0.176572,56634.0,56628.0,0.353182]
[1725558516282,0.176572,56634.0,56631.0,0.012]
[1725558516503,0.176572,56634.0,56630.0,0.176584]
[1725558516940,0.353141,56635.0,56629.0,0.176587]
[1725558516941,0.176575,56633.0,56629.0,0.176587]
[1725558517158,0.176573,56634.0,56631.0,0.176581]
[1725558517559,0.176573,56634.0,56628.0,0.353182]
[1725558517560,0.353143,56635.0,56628.0,0.17659]
[1725558517784,0.353143,56635.0,56629.0,0.176586]
[1725558517785,0.176577,56633.0,56629.0,0.176586]
[1725558518037,0.35620247,56637.0,56629.0,0.176585]
[1725558518259,0.35620247,56637.0,56627.0,0.353186]
[1725558518260,0.353146,56634.0,56627.0,0.353186]
[1725558518496,0.17658,56632.0,56627.0,0.353187]
[1725558518719,0.17658,56632.0,56631.0,0.012]
[1725558519144,0.17658,56632.0,56629.0,0.176586]
[1725558519355,0.17658,56632.0,56630.0,0.012]
[1725558519794,0.176575,56633.0,56629.0,0.178218]
[1725558520023,0.17658,56632.0,56629.0,0.001632]
[1725558520237,0.17658,56632.0,56631.0,0.014]
[1725558520463,0.529737,56632.0,56631.0,0.014]
[1725558520689,0.176579,56632.0,56629.0,0.001632]
[1725558520906,0.176579,56632.0,56629.0,0.191219]
[1725558521170,0.023,56636.0,56630.0,0.353169]
[1725558521421,0.000816,56643.0,56642.0,1.169535]
[1725558521643,0.000816,56643.0,56642.0,1.78813996]
[1725558521868,0.000816,56643.0,56642.0,2.14123396]
[1725558522342,0.000816,56643.0,56642.0,1.78813996]
[1725558523022,0.000816,56643.0,56642.0,1.80213996]
[1725558523250,0.000816,56643.0,56642.0,1.67763996]
[1725558523476,0.000816,56643.0,56642.0,1.69163996]
[1725558524192,0.000816,56643.0,56642.0,0.809941]
[1725558524412,0.000816,56643.0,56642.0,0.204547]
[1725558524899,0.000816,56643.0,56642.0,0.028]
[1725558525139,0.000816,56643.0,56642.0,0.204547]
[1725558525362,0.000816,56643.0,56642.0,0.557641]
[1725558525587,0.000816,56643.0,56642.0,0.204547]
[1725558526290,0.000816,56643.0,56642.0,0.557641]
[1725558527415,0.000816,56643.0,56642.0,0.204547]
[1725558527697,0.000816,56643.0,56642.0,0.028]
[1725558527917,0.834348,56643.0,56642.0,0.028]
[1725558528129,1.187436,56643.0,56642.0,0.028]
[1725558528811,0.353124,56638.0,56628.0,0.35318]
[1725558529075,0.30439048,56636.0,56630.0,0.353165]
[1725558529308,0.30439048,56636.0,56635.0,0.529707]
[1725558529530,0.32739048,56636.0,56635.0,0.529707]
[1725558529742,0.32739048,56636.0,56632.0,0.176577]
[1725558529958,0.32739048,56636.0,56633.0,0.176575]
[1725558530207,0.32739048,56636.0,56632.0,0.353154]
[1725558530425,0.023,56636.0,56634.0,0.176572]
[1725558530639,0.17656,56638.0,56634.0,0.176572]
[1725558530871,0.023,56639.0,56632.0,0.353154]
[1725558530872,0.199563,56637.0,56633.0,0.176572]
[1725558531092,0.023,56637.0,56633.0,0.176572]
[1725558531312,0.176563,56637.0,56633.0,0.176572]
[1725558531551,0.023,56636.0,56633.0,0.176572]
[1725558531984,0.176572,56634.0,56632.0,0.009]
[1725558532200,0.17657,56635.0,56633.0,0.008]
[1725558532422,0.023,56634.0,56632.0,0.009]
[1725558532670,0.023,56634.0,56633.0,0.176575]
[1725558532905,0.023,56635.0,56633.0,0.194575]
[1725558533129,0.353111,56640.0,56633.0,0.185575]
[1725558533130,0.199566,56636.0,56633.0,0.185575]
[1725558533356,0.199566,56636.0,56633.0,0.186575]
[1725558534056,0.199566,56636.0,56633.0,0.01]
[1725558534291,0.023,56636.0,56633.0,0.01]
[1725558534525,0.176566,56636.0,56633.0,0.01]